fUSD/lending_fUSD_20240930
["ID","MTS","AMOUNT","RATE_DAILY","PERIOD"]
[339601808,1727729431783,-300.0,0.00011595,2]
[339601809,1727729431792,-250.0,0.00011596,2]
[339601810,1727729431802,-23890.0,0.00011596,2]
[339601811,1727729431820,-188.4,0.00011601,2]
[339601812,1727729431829,-153.28,0.00011611,2]
[339601813,1727729431844,-279.97,0.00011657,2]
[339601814,1727729431854,-200.0,0.00011687,2]
[339601815,1727729431863,-299.99,0.00011687,2]
[339601816,1727729431871,-1922.0,0.00011687,2]
[339601817,1727729431881,-229.76,0.00011704,2]
[339601818,1727729431891,-150.99,0.00011704,2]
[339601819,1727729431900,-164.43,0.00011789,2]
[339601820,1727729431910,-200.0,0.00011798,2]
[339601821,1727729431919,-269.81,0.0001197,2]
[339601822,1727729431929,-10000.0,0.00011999,2]
[339601823,1727729431938,-301.88,0.00012178,2]
[339601824,1727729431947,-172.908726,0.00012237,2]
[339601825,1727729431957,-491.001,0.00012427,2]
[339601826,1727729431966,-179.248,0.00012427,2]
[339601827,1727729431975,-150.0,0.00012499,2]
[339601828,1727729431984,-3593.0,0.000125,3]
[339601829,1727729431994,-1047.22145983,0.00012618,2]
[339601830,1727729432003,-283.93620276,0.00012619,2]
[339601831,1727729432013,-1127.75766231,0.00012638,2]
[339601832,1727729432022,-180.0,0.00012702,2]
[339601833,1727729432031,-420.0,0.00012734,2]
[339601834,1727729432040,-409.5926,0.00012776,2]
[339601835,1727729432049,-629.8346,0.00012776,2]
[339601836,1727729432058,-1219.5522,0.00012776,2]
[339601837,1727729432067,-2011.00174479,0.00012776,2]
[339601838,1727729432076,-2011.00174471,0.00012779,2]
[339601841,1727729432085,-2011.00174471,0.00012781,2]
[339601843,1727729432094,-2011.00174471,0.00012784,2]
[339601845,1727729432104,-2011.00174471,0.00012787,2]
[339601847,1727729432113,-2011.00174471,0.00012789,2]
[339601849,1727729432122,-2011.00174471,0.00012792,2]
[339601851,1727729432131,-500.0,0.00012793,2]
[339601852,1727729432141,-150.0,0.00012795,2]
[339601853,1727729432150,-2011.00174471,0.00012795,2]
[339601854,1727729432159,-2011.00174471,0.00012797,2]
[339601855,1727729432168,-168.26718076,0.00012799,2]
[339601856,1727729432178,-188.90231542,0.00012799,2]
[339601857,1727729432187,-158.32920976,0.00012799,2]
[339601858,1727729432196,-525.57766066,0.00012799,2]
[339601859,1727729432205,-168.26718074,0.00012799,2]
[339601860,1727729432214,-168.26718074,0.000128,2]
[339601861,1727729432223,-168.26718074,0.000128,2]
[339601862,1727729432232,-168.26718074,0.000128,2]
[339601863,1727729432241,-995.94,0.000128,2]
[339601864,1727729432251,-2011.00174471,0.000128,2]
[339601865,1727729432260,-210.77847827,0.000128,2]
[339601866,1727729432269,-1000.0,0.000128,2]
[339601867,1727729432278,-1271.17510742,0.000128,2]
[339601868,1727729432288,-150.0,0.00012844,2]
[339601869,1727729432298,-150.0,0.00012845,2]
[339601870,1727729432309,-150.0,0.00012846,2]
[339601871,1727729432324,-150.0,0.00012847,2]
[339601872,1727729432339,-150.0,0.00012848,2]
[339601873,1727729432349,-500.0,0.00012876,2]
[339601874,1727729432359,-500.0,0.00012876,2]
[339601875,1727729432369,-500.0,0.00012876,2]
[339601876,1727729432378,-500.0,0.00012876,2]
[339601877,1727729432388,-500.0,0.00012876,2]
[339601878,1727729432398,-500.0,0.00012876,2]
[339601879,1727729432408,-500.0,0.00012876,2]
[339601880,1727729432418,-241.65121557,0.00012876,2]
[339601881,1727729432428,-500.0,0.00012876,2]
[339601882,1727729432437,-500.0,0.00012876,2]
[339601883,1727729432446,-425.3099702,0.00012876,2]
[339601884,1727729432455,-500.0,0.00012876,2]
[339601885,1727729432464,-399.76,0.00012876,2]
[339601886,1727729432473,-500.0,0.00012876,2]
[339601887,1727729432482,-500.0,0.00012876,2]
[339601888,1727729432492,-480.92208128,0.00012876,2]
[339601889,1727729432501,-578.66,0.00012876,2]
[339601890,1727729432510,-500.0,0.00012876,2]
[339601891,1727729432520,-500.0,0.00012876,2]
[339601892,1727729432529,-500.0,0.00012876,2]
[339601893,1727729432538,-500.0,0.00012876,2]
[339601894,1727729432548,-500.0,0.00012876,2]
[339601895,1727729432557,-215.96280006,0.00012876,2]
[339601896,1727729432579,-500.0,0.00012876,2]
[339601897,1727729432589,-500.0,0.00012876,2]
[339601898,1727729432598,-500.0,0.00012876,2]
[339601899,1727729432607,-500.0,0.00012876,2]
[339601900,1727729432617,-500.0,0.00012876,2]
[339601901,1727729432626,-500.0,0.00012876,2]
[339601902,1727729432635,-500.0,0.00012876,2]
[339601903,1727729432644,-500.0,0.00012876,2]
[339601904,1727729432653,-807.46,0.00012876,2]
[339601905,1727729432662,-807.46,0.00012876,2]
[339601906,1727729432671,-807.46,0.00012876,2]
[339601907,1727729432680,-807.46,0.00012876,2]
[339601908,1727729432689,-807.46,0.00012876,2]
[339601909,1727729432698,-807.46,0.00012876,2]
[339601910,1727729432707,-807.46,0.00012876,2]
[339601911,1727729432717,-807.46,0.00012876,2]
[339601912,1727729432726,-500.0,0.00012876,2]
[339601913,1727729432735,-500.0,0.00012876,2]
[339601914,1727729432744,-500.0,0.00012876,2]
[339601915,1727729432754,-500.0,0.00012876,2]
[339601916,1727729432764,-500.0,0.00012876,2]
[339601917,1727729432776,-500.0,0.00012876,2]
[339601918,1727729432788,-314.13238707,0.00012876,2]
[339601919,1727729432798,-501.89692475,0.00012876,2]
[339601920,1727729432810,-1402.91,0.00012876,2]
[339601921,1727729432831,-1402.91,0.00012876,2]
[339601922,1727729432840,-1402.91,0.00012876,2]
[339601923,1727729432850,-1402.91,0.00012876,2]
[339601924,1727729432860,-1402.91,0.00012876,2]
[339601925,1727729432869,-1402.91,0.00012876,2]
[339601926,1727729432878,-1402.91,0.00012876,2]
[339601927,1727729432888,-1402.91,0.00012876,2]
[339601928,1727729432897,-500.0,0.00012876,2]
[339601929,1727729432907,-500.0,0.00012876,2]
[339601930,1727729432917,-500.0,0.00012876,2]
[339601931,1727729432926,-500.0,0.00012876,2]
[339601932,1727729432935,-500.0,0.00012876,2]
[339601933,1727729432944,-500.0,0.00012876,2]
[339601934,1727729432954,-500.0,0.00012876,2]
[339601935,1727729432963,-500.0,0.00012876,2]
[339601936,1727729432973,-500.0,0.00012876,2]
[339601937,1727729432983,-500.0,0.00012876,2]
[339601938,1727729432992,-500.0,0.00012876,2]
[339601939,1727729433001,-500.0,0.00012876,2]
[339601940,1727729433010,-500.0,0.00012876,2]
[339601941,1727729433020,-500.0,0.00012876,2]
[339601942,1727729433029,-500.0,0.00012876,2]
[339601943,1727729433038,-500.0,0.00012876,2]
[339601944,1727729433047,-500.0,0.00012876,2]
[339601945,1727729433056,-500.0,0.00012876,2]
[339601946,1727729433076,-500.0,0.00012876,2]
[339601947,1727729433086,-500.0,0.00012876,2]
[339601948,1727729433095,-500.0,0.00012876,2]
[339601949,1727729433105,-500.0,0.00012876,2]
[339601950,1727729433115,-500.0,0.00012876,2]
[339601951,1727729433124,-500.0,0.00012876,2]
[339601952,1727729433134,-500.0,0.00012876,2]
[339601953,1727729433143,-170.34605032,0.00012876,2]
[339601954,1727729433152,-873.68,0.00012876,2]
[339601955,1727729433162,-873.68,0.00012876,2]
[339601956,1727729433172,-873.68,0.00012876,2]
[339601957,1727729433181,-873.68,0.00012876,2]
[339601958,1727729433191,-873.68,0.00012876,2]
[339601959,1727729433201,-873.68,0.00012876,2]
[339601960,1727729433211,-873.68,0.00012876,2]
[339601961,1727729433221,-873.68,0.00012876,2]
[339601962,1727729433231,-573.23,0.00012876,2]
[339601963,1727729433240,-573.23,0.00012876,2]
[339601964,1727729433250,-573.23,0.00012876,2]
[339601965,1727729433260,-573.23,0.00012876,2]
[339601966,1727729433270,-573.23,0.00012876,2]
[339601967,1727729433280,-573.23,0.00012876,2]
[339601968,1727729433290,-573.23,0.00012876,2]
[339601969,1727729433300,-573.23,0.00012876,2]
[339601970,1727729433309,-794.27,0.00012876,2]
[339601971,1727729433321,-794.27,0.00012876,2]
[339601972,1727729433331,-794.27,0.00012876,2]
[339601973,1727729433341,-794.27,0.00012876,2]
[339601974,1727729433350,-794.27,0.00012876,2]
[339601975,1727729433360,-794.27,0.00012876,2]
[339601976,1727729433370,-794.27,0.00012876,2]
[339601977,1727729433380,-794.27,0.00012876,2]
[339601978,1727729433389,-500.0,0.00012876,2]
[339601979,1727729433399,-500.0,0.00012876,2]
[339601980,1727729433408,-500.0,0.00012876,2]
[339601981,1727729433418,-536.66133415,0.00012876,2]
[339601982,1727729433428,-500.0,0.00012876,2]
[339601983,1727729433438,-500.0,0.00012876,2]
[339601984,1727729433447,-500.0,0.00012876,2]
[339601985,1727729433456,-500.0,0.00012876,2]
[339601986,1727729433466,-500.0,0.00012876,2]
[339601987,1727729433475,-500.0,0.00012876,2]
[339601988,1727729433485,-500.0,0.00012876,2]
[339601989,1727729433494,-500.0,0.00012876,2]
[339601990,1727729433503,-500.0,0.00012876,2]
[339601991,1727729433513,-500.0,0.00012876,2]
[339601992,1727729433522,-762.53,0.00012876,2]
[339601993,1727729433532,-762.53,0.00012876,2]
[339601994,1727729433541,-762.53,0.00012876,2]
[339601995,1727729433550,-762.53,0.00012876,2]
[339601996,1727729433562,-762.53,0.00012876,2]
[339601997,1727729433572,-762.53,0.00012876,2]
[339601998,1727729433581,-762.53,0.00012876,2]
[339601999,1727729433591,-649.36,0.00012876,2]
[339602000,1727729433601,-762.53,0.00012876,2]
[339602001,1727729433611,-2646.55,0.00012876,2]
[339602002,1727729433620,-941.76,0.00012876,2]
[339602003,1727729433631,-573.35,0.00012876,2]
[339602004,1727729433640,-573.35,0.00012876,2]
[339602005,1727729433650,-573.35,0.00012876,2]
[339602006,1727729433659,-573.35,0.00012876,2]
[339602007,1727729433669,-573.35,0.00012876,2]
[339602008,1727729433678,-573.35,0.00012876,2]
[339602009,1727729433688,-573.35,0.00012876,2]
[339602010,1727729433697,-573.35,0.00012876,2]
[339602011,1727729433706,-500.0,0.00012876,2]
[339602012,1727729433716,-365.2639734,0.00012876,2]
[339602013,1727729433725,-500.0,0.00012876,2]
[339602014,1727729433734,-230.06704209,0.00012876,2]
[339602015,1727729433743,-500.0,0.00012876,2]
[339602016,1727729433753,-1375.27,0.00012876,2]
[339602017,1727729433762,-1375.27,0.00012876,2]
[339602018,1727729433771,-1375.27,0.00012876,2]
[339602019,1727729433781,-1375.27,0.00012876,2]
[339602020,1727729433791,-1375.27,0.00012876,2]
[339602021,1727729433800,-1375.27,0.00012876,2]
[339602022,1727729433812,-1375.27,0.00012876,2]
[339602023,1727729433829,-1375.27,0.00012876,2]
[339602024,1727729433838,-1459.4,0.00012876,2]
[339602025,1727729433849,-647.85,0.00012876,2]
[339602026,1727729433858,-647.85,0.00012876,2]
[339602027,1727729433867,-647.85,0.00012876,2]
[339602028,1727729433876,-647.85,0.00012876,2]
[339602029,1727729433887,-647.85,0.00012876,2]
[339602030,1727729433897,-647.85,0.00012876,2]
[339602031,1727729433906,-647.85,0.00012876,2]
[339602032,1727729433916,-647.85,0.00012876,2]
[339602033,1727729433925,-500.0,0.00012876,2]
[339602034,1727729433935,-1109.17,0.00012876,2]
[339602035,1727729433944,-500.0,0.00012876,2]
[339602036,1727729433953,-972.28,0.00012876,2]
[339602037,1727729433963,-500.0,0.00012876,2]
[339602038,1727729433972,-500.0,0.00012876,2]
[339602039,1727729433983,-500.0,0.00012876,2]
[339602040,1727729433992,-500.0,0.00012876,2]
[339602041,1727729434001,-500.0,0.00012876,2]
[339602042,1727729434011,-500.0,0.00012876,2]
[339602043,1727729434020,-500.0,0.00012876,2]
[339602044,1727729434031,-500.0,0.00012876,2]
[339602045,1727729434041,-500.0,0.00012876,2]
[339602046,1727729434051,-500.0,0.00012876,2]
[339602047,1727729434060,-500.0,0.00012876,2]
[339602048,1727729434073,-500.0,0.00012876,2]
[339602049,1727729434082,-500.0,0.00012876,2]
[339602050,1727729434092,-500.0,0.00012876,2]
[339602051,1727729434101,-500.0,0.00012876,2]
[339602052,1727729434111,-500.0,0.00012876,2]
[339602053,1727729434120,-500.0,0.00012876,2]
[339602054,1727729434129,-500.0,0.00012876,2]
[339602055,1727729434138,-500.0,0.00012876,2]
[339602056,1727729434148,-500.0,0.00012876,2]
[339602057,1727729434158,-500.0,0.00012876,2]
[339602058,1727729434167,-500.0,0.00012876,2]
[339602059,1727729434176,-500.0,0.00012876,2]
[339602060,1727729434185,-500.0,0.00012876,2]
[339602061,1727729434195,-500.0,0.00012876,2]
[339602062,1727729434204,-500.0,0.00012876,2]
[339602063,1727729434214,-500.0,0.00012876,2]
[339602064,1727729434223,-1216.33,0.00012876,2]
[339602065,1727729434234,-512.76,0.00012876,2]
[339602066,1727729434243,-500.0,0.00012876,2]
[339602067,1727729434253,-500.0,0.00012876,2]
[339602068,1727729434262,-500.0,0.00012876,2]
[339602069,1727729434272,-737.61,0.00012876,2]
[339602070,1727729434281,-500.0,0.00012876,2]
[339602071,1727729434291,-1081.94,0.00012876,2]
[339602072,1727729434300,-508.0,0.00012876,2]
[339602073,1727729434309,-500.0,0.00012876,2]
[339602074,1727729434321,-500.0,0.00012876,2]
[339602075,1727729434331,-369.99011397,0.00012876,2]
[339602076,1727729434340,-4753.36,0.00012876,2]
[339602077,1727729434349,-2454.87,0.00012876,2]
[339602078,1727729434359,-688.97,0.00012876,2]
[339602079,1727729434368,-500.0,0.00012876,2]
[339602080,1727729434377,-500.0,0.00012876,2]
[339602081,1727729434386,-748.62,0.00012876,2]
[339602082,1727729434396,-500.0,0.00012876,2]
[339602083,1727729434405,-500.0,0.00012876,2]
[339602084,1727729434415,-500.0,0.00012876,2]
[339602085,1727729434424,-500.0,0.00012876,2]
[339602086,1727729434433,-500.0,0.00012876,2]
[339602087,1727729434443,-500.0,0.00012876,2]
[339602088,1727729434452,-500.0,0.00012876,2]
[339602089,1727729434462,-4667.97,0.00012876,2]
[339602090,1727729434471,-639.95,0.00012876,2]
[339602091,1727729434481,-500.0,0.00012876,2]
[339602092,1727729434490,-927.23,0.00012876,2]
[339602093,1727729434500,-500.0,0.00012876,2]
[339602094,1727729434510,-500.0,0.00012876,2]
[339602095,1727729434685,-1078.73,0.00012876,2]
[339602096,1727729434696,-500.0,0.00012876,2]
[339602097,1727729434705,-500.0,0.00012876,2]
[339602098,1727729434714,-2697.69,0.00012876,2]
[339602099,1727729434723,-500.0,0.00012876,2]
[339602100,1727729434733,-500.0,0.00012876,2]
[339602101,1727729434742,-729.45,0.00012876,2]
[339602102,1727729434751,-500.0,0.00012876,2]
[339602103,1727729434760,-535.87,0.00012876,2]
[339602104,1727729434770,-500.0,0.00012876,2]
[339602105,1727729434779,-520.04,0.00012876,2]
[339602106,1727729434788,-625.4892205,0.00012876,2]
[339602107,1727729434797,-500.0,0.00012876,2]
[339602108,1727729434809,-2661.63,0.00012876,2]
[339602109,1727729434819,-998.56,0.00012876,2]
[339602110,1727729434829,-500.0,0.00012876,2]
[339602111,1727729434838,-500.0,0.00012876,2]
[339602112,1727729434847,-500.0,0.00012876,2]
[339602113,1727729434856,-1055.68,0.00012876,2]
[339602114,1727729434866,-500.0,0.00012876,2]
[339602115,1727729434875,-1293.63,0.00012876,2]
[339602116,1727729434885,-580.76,0.00012876,2]
[339602117,1727729434894,-720.66,0.00012876,2]
[339602118,1727729434903,-500.0,0.00012876,2]
[339602119,1727729434913,-4498.26,0.00012876,2]
[339602120,1727729434923,-500.0,0.00012889,2]
[339602121,1727729434933,-179.99,0.00012893,2]
[339602122,1727729434942,-1557.70054933,0.00012895,2]
[339602123,1727729434951,-500.0,0.00012895,2]
[339602124,1727729434961,-500.0,0.00012895,2]
[339602125,1727729434970,-578.66,0.00012895,2]
[339602126,1727729434981,-2646.55,0.00012895,2]
[339602127,1727729434989,-941.76,0.00012895,2]
[339602128,1727729434999,-500.0,0.00012895,2]
[339602129,1727729435008,-500.0,0.00012895,2]
[339602130,1727729435017,-1459.4,0.00012895,2]
[339602131,1727729435027,-500.0,0.00012895,2]
[339602132,1727729435037,-1109.17,0.00012895,2]
[339602133,1727729435046,-500.0,0.00012895,2]
[339602134,1727729435056,-972.28,0.00012895,2]
[339602135,1727729435066,-500.0,0.00012895,2]
[339602136,1727729435075,-500.0,0.00012895,2]
[339602137,1727729435085,-512.76,0.00012895,2]
[339602138,1727729435095,-1081.94,0.00012895,2]
[339602139,1727729435104,-500.0,0.00012895,2]
[339602140,1727729435114,-500.0,0.00012895,2]
[339602141,1727729435124,-500.0,0.00012895,2]
[339602142,1727729435134,-500.0,0.00012895,2]
[339602143,1727729435143,-4667.97,0.00012895,2]
[339602144,1727729435153,-500.0,0.00012895,2]
[339602145,1727729435162,-2697.69,0.00012895,2]
[339602146,1727729435172,-500.0,0.00012896,2]
[339602147,1727729435181,-807.46,0.00012896,2]
[339602148,1727729435190,-1402.91,0.00012896,2]
[339602149,1727729435200,-500.0,0.00012896,2]
[339602150,1727729435209,-500.0,0.00012896,2]
[339602151,1727729435219,-500.0,0.00012896,2]
[339602152,1727729435228,-873.68,0.00012896,2]
[339602153,1727729435238,-573.23,0.00012896,2]
[339602154,1727729435247,-794.27,0.00012896,2]
[339602155,1727729435257,-500.0,0.00012896,2]
[339602156,1727729435266,-500.0,0.00012896,2]
[339602157,1727729435276,-500.0,0.00012896,2]
[339602158,1727729435286,-500.0,0.00012896,2]
[339602159,1727729435295,-762.53,0.00012896,2]
[339602160,1727729435305,-649.36,0.00012896,2]
[339602161,1727729435315,-573.35,0.00012896,2]
[339602162,1727729435325,-1375.27,0.00012896,2]
[339602163,1727729435334,-647.85,0.00012896,2]
[339602164,1727729435344,-500.0,0.00012896,2]
[339602165,1727729435354,-500.0,0.00012896,2]
[339602166,1727729435364,-500.0,0.00012896,2]
[339602167,1727729435374,-495.80154692,0.00012896,2]
[339602168,1727729435383,-1216.33,0.00012896,2]
[339602169,1727729435394,-500.0,0.00012896,2]
[339602170,1727729435404,-500.0,0.00012896,2]
[339602171,1727729435414,-500.0,0.00012896,2]
[339602172,1727729435424,-737.61,0.00012896,2]
[339602173,1727729435435,-500.0,0.00012896,2]
[339602174,1727729435444,-508.0,0.00012896,2]
[339602175,1727729435454,-4753.36,0.00012896,2]
[339602176,1727729435464,-2454.87,0.00012896,2]
[339602177,1727729435474,-688.97,0.00012896,2]
[339602178,1727729435484,-500.0,0.00012896,2]
[339602179,1727729435494,-748.62,0.00012896,2]
[339602180,1727729435503,-500.0,0.00012896,2]
[339602181,1727729435512,-500.0,0.00012896,2]
[339602182,1727729435522,-500.0,0.00012896,2]
[339602183,1727729435533,-500.0,0.00012896,2]
[339602184,1727729435542,-500.0,0.00012896,2]
[339602185,1727729435552,-156.02358589,0.00012896,2]
[339602186,1727729435563,-639.95,0.00012896,2]
[339602187,1727729435573,-500.0,0.00012896,2]
[339602188,1727729435583,-927.23,0.00012896,2]
[339602189,1727729435592,-500.0,0.00012896,2]
[339602190,1727729435601,-1078.73,0.00012896,2]
[339602191,1727729435611,-500.0,0.00012896,2]
[339602192,1727729435620,-492.55371204,0.00012896,2]
[339602193,1727729435630,-500.0,0.00012896,2]
[339602194,1727729435639,-500.0,0.00012896,2]
[339602195,1727729435648,-729.45,0.00012896,2]
[339602196,1727729435658,-500.0,0.00012896,2]
[339602197,1727729435668,-535.87,0.00012896,2]
[339602198,1727729435677,-500.0,0.00012896,2]
[339602199,1727729435687,-520.04,0.00012896,2]
[339602200,1727729435696,-500.0,0.00012896,2]
[339602201,1727729435706,-2661.63,0.00012896,2]
[339602202,1727729435715,-998.56,0.00012896,2]
[339602203,1727729435725,-500.0,0.00012896,2]
[339602204,1727729435734,-459.09,0.00012896,2]
[339602205,1727729435744,-1055.68,0.00012896,2]
[339602206,1727729435754,-500.0,0.00012896,2]
[339602207,1727729435763,-500.0,0.00012896,2]
[339602208,1727729435772,-1293.63,0.00012896,2]
[339602209,1727729435782,-580.76,0.00012896,2]
[339602210,1727729435791,-720.66,0.00012896,2]
[339602211,1727729435801,-500.0,0.00012896,2]
[339602212,1727729435814,-4498.26,0.00012896,2]
[339602213,1727729435824,-500.0,0.00012897,2]
[339602214,1727729435833,-500.0,0.00012897,2]
[339602215,1727729435843,-500.0,0.00012897,2]
[339602216,1727729435854,-500.0,0.00012897,2]
[339602217,1727729435864,-578.66,0.00012897,2]
[339602218,1727729435873,-500.0,0.00012897,2]
[339602219,1727729435885,-588.94930838,0.00012897,2]
[339602220,1727729435894,-807.46,0.00012897,2]
[339602221,1727729435904,-807.46,0.00012897,2]
[339602222,1727729435913,-1402.91,0.00012897,2]
[339602223,1727729435923,-1402.91,0.00012897,2]
[339602224,1727729435933,-500.0,0.00012897,2]
[339602225,1727729435942,-500.0,0.00012897,2]
[339602226,1727729435952,-500.0,0.00012897,2]
[339602227,1727729435961,-500.0,0.00012897,2]
[339602228,1727729435970,-500.0,0.00012897,2]
[339602229,1727729435980,-500.0,0.00012897,2]
[339602230,1727729435989,-873.68,0.00012897,2]
[339602231,1727729435998,-873.68,0.00012897,2]
[339602232,1727729436007,-573.23,0.00012897,2]
[339602233,1727729436017,-573.23,0.00012897,2]
[339602234,1727729436027,-794.27,0.00012897,2]
[339602235,1727729436035,-794.27,0.00012897,2]
[339602236,1727729436045,-178.2360397,0.00012897,2]
[339602237,1727729436054,-500.0,0.00012897,2]
[339602238,1727729436064,-500.0,0.00012897,2]
[339602239,1727729436073,-500.0,0.00012897,2]
[339602240,1727729436083,-234.11184082,0.00012897,2]
[339602241,1727729436091,-649.36,0.00012897,2]
[339602242,1727729436101,-762.53,0.00012897,2]
[339602243,1727729436110,-762.53,0.00012897,2]
[339602244,1727729436119,-2646.55,0.00012897,2]
[339602245,1727729436128,-941.76,0.00012897,2]
[339602246,1727729436138,-573.35,0.00012897,2]
[339602247,1727729436147,-573.35,0.00012897,2]
[339602248,1727729436156,-500.0,0.00012897,2]
[339602249,1727729436166,-500.0,0.00012897,2]
[339602250,1727729436176,-1375.27,0.00012897,2]
[339602251,1727729436185,-1375.27,0.00012897,2]
[339602252,1727729436194,-1459.4,0.00012897,2]
[339602253,1727729436204,-647.85,0.00012897,2]
[339602254,1727729436213,-647.85,0.00012897,2]
[339602255,1727729436223,-500.0,0.00012897,2]
[339602256,1727729436232,-1109.17,0.00012897,2]
[339602257,1727729436243,-500.0,0.00012897,2]
[339602258,1727729436253,-972.28,0.00012897,2]
[339602259,1727729436263,-503.09440055,0.00012897,2]
[339602260,1727729436272,-500.0,0.00012897,2]
[339602261,1727729436281,-500.0,0.00012897,2]
[339602262,1727729436291,-500.0,0.00012897,2]
[339602263,1727729436300,-500.0,0.00012897,2]
[339602264,1727729436310,-500.0,0.00012897,2]
[339602265,1727729436320,-500.0,0.00012897,2]
[339602266,1727729436329,-1216.33,0.00012897,2]
[339602267,1727729436338,-512.76,0.00012897,2]
[339602268,1727729436348,-500.0,0.00012897,2]
[339602269,1727729436357,-500.0,0.00012897,2]
[339602270,1727729436366,-500.0,0.00012897,2]
[339602271,1727729436375,-737.61,0.00012897,2]
[339602272,1727729436385,-500.0,0.00012897,2]
[339602273,1727729436394,-1081.94,0.00012897,2]
[339602274,1727729436403,-508.0,0.00012897,2]
[339602275,1727729436413,-500.0,0.00012897,2]
[339602276,1727729436422,-500.0,0.00012897,2]
[339602277,1727729436431,-4753.36,0.00012897,2]
[339602278,1727729436442,-2454.87,0.00012897,2]
[339602279,1727729436456,-688.97,0.00012897,2]
[339602280,1727729436468,-500.0,0.00012897,2]
[339602281,1727729436482,-500.0,0.00012897,2]
[339602282,1727729436495,-748.62,0.00012897,2]
[339602283,1727729436508,-500.0,0.00012897,2]
[339602284,1727729436518,-500.0,0.00012897,2]
[339602285,1727729436528,-500.0,0.00012897,2]
[339602286,1727729436540,-500.0,0.00012897,2]
[339602287,1727729436552,-500.0,0.00012897,2]
[339602288,1727729436563,-500.0,0.00012897,2]
[339602289,1727729436575,-4667.97,0.00012897,2]
[339602290,1727729436586,-639.95,0.00012897,2]
[339602291,1727729436598,-500.0,0.00012897,2]
[339602292,1727729436611,-927.23,0.00012897,2]
[339602293,1727729436623,-500.0,0.00012897,2]
[339602294,1727729436635,-500.0,0.00012897,2]
[339602295,1727729436647,-1078.73,0.00012897,2]
[339602296,1727729436660,-500.0,0.00012897,2]
[339602297,1727729436672,-2697.69,0.00012897,2]
[339602298,1727729436684,-500.0,0.00012897,2]
[339602299,1727729436695,-500.0,0.00012897,2]
[339602300,1727729436706,-729.45,0.00012897,2]
[339602301,1727729436717,-532.77361458,0.00012897,2]
[339602302,1727729436728,-535.87,0.00012897,2]
[339602303,1727729436740,-500.0,0.00012897,2]
[339602304,1727729436752,-520.04,0.00012897,2]
[339602305,1727729436764,-500.0,0.00012897,2]
[339602306,1727729436775,-2661.63,0.00012897,2]
[339602307,1727729436787,-998.56,0.00012897,2]
[339602308,1727729436798,-315.17210462,0.00012897,2]
[339602309,1727729436810,-1055.68,0.00012897,2]
[339602310,1727729436820,-500.0,0.00012897,2]
[339602311,1727729436832,-500.0,0.00012897,2]
[339602312,1727729436843,-1293.63,0.00012897,2]
[339602313,1727729436855,-580.76,0.00012897,2]
[339602314,1727729436867,-720.66,0.00012897,2]